Cogmind - Beta 9.2 @@@ ROGUE MODE // 2019.12.04 @ 21:03:20 Player: Fleshy Vegetable Bird Result: Self-destructed Performance ------------- Evolutions (1) 500 Regions Visited (2) 400 Robots Destroyed (5) 25 Value Destroyed (38) 38 Prototype IDs (2) 40 Alien Tech Used (0) 0 Bonus (0) 0 TOTAL SCORE: 1003 Bonus ------- None Cogmind --------- Core Integrity 360/400 Matter 300/300 Energy 11/100 System Corruption 0% Temperature Cool (12) Movement Flying (37) Location -9/Materials Parts ------- > --- POWER (1) -------- (None) > --- PROPULSION (3) --- Flight Unit Flight Unit > --- UTILITY (3) ------ Small Storage Unit > --- WEAPON (2) ------- (None) > --- INVENTORY (6) ---- Light Ion Engine Improved EM Shotgun Improved EM Shotgun Improved EM Shotgun Light Assault Rifle Peak State ------------ > --- POWER ------------ Light Ion Engine > --- PROPULSION ------- Flight Unit Flight Unit Flight Unit > --- UTILITY ---------- Small Storage Unit > --- WEAPON ----------- Small Laser > --- INVENTORY -------- Light Ion Engine Improved EM Shotgun Improved EM Shotgun Improved EM Shotgun Light Assault Rifle [Rating: 7] Favorites ----------- Power Light Ion Engine Engine Light Ion Engine Propulsion Flight Unit Wheel Wheel Flight Unit Flight Unit Utility Small Storage Unit Storage Small Storage Unit Weapon Small Laser Energy Gun Small Laser Build | -11 -10 -9 ------- Run | Scr Mat Mat Slots Evolved 2 | . . 2 Power . | . . . Propulsion 1 | . . 1 Utility 1 | . . 1 Weapon . | . . . Parts Attached 9 | 6 2 1 Power 1 | 1 . . Engine 1 | 1 . . Core . | . . . Reactor . | . . . Propulsion 5 | 2 2 1 Treads . | . . . Leg . | . . . Wheel 2 | 2 . . Hover . | . . . Flight 3 | . 2 1 Utility 1 | 1 . . Device . | . . . Storage 1 | 1 . . Processor . | . . . Hackware . | . . . Protection . | . . . Artifact . | . . . Weapon 2 | 2 . . Energy Gun 2 | 2 . . Energy Cannon . | . . . Ballistic Gun . | . . . Ballistic Cannon . | . . . Launcher . | . . . Special Weapon . | . . . Impact Weapon . | . . . Slashing Weapon . | . . . Piercing Weapon . | . . . Special Melee Weapon . | . . . Unidentified Prototypes . | . . . Parts Lost 3 | . . 3 Power 1 | . . 1 Propulsion 1 | . . 1 Utility . | . . . Weapon 1 | . . 1 Highest Loss Streak 2 | . . 2 Average Slot Usage (%) 72 | . 81 62 Engine 12 | . 14 10 Wheel 10 | . 20 . Flight 19 | . 7 33 Storage 12 | . 14 11 Energy Gun 16 | . 24 7 Naked Turns . | . . . Heaviest Build 10 | 10 10 8 Greatest Support 20 | 20 20 12 Greatest Overweight (x) 3 | 1 3 . Average Overweight (x) . | . . . Largest Inventory Capacity 6 | 6 6 6 Average Capacity 5 | 5 6 6 Most Carried 5 | 5 3 5 Average Carried 3 | 2 2 4 Final Capacity 6 | 6 6 6 Final Carried 5 | 2 3 5 Class Distribution -------------------- 100% | Mutant Dominant Class ---------------- Mutant | -10/Materials Mutant | -9/Materials Resources | -11 -10 -9 ----------- Run | Scr Mat Mat Matter Collected 285 | 260 20 5 Remotely . | . . . Salvage Created 187 | 92 95 . Parts 10 | 1 9 . Haulers Intercepted 1 | . 1 . Recyclers Shooed . | . . . Parts Field Recycled . | . . . Retrieved Matter . | . . . Parts Self-Destructed . | . . . Prevented . | . . . Kills | -11 -10 -9 ------- Run | Scr Mat Mat Combat Hostiles Destroyed 3 | . 3 . Guns 3 | . 3 . Classes Destroyed 3 | 1 2 . Hauler 1 | . 1 . Recycler 1 | 1 . . Swarmer 3 | . 3 . Best Kill Streak 3 | 1 3 . Combat Bots Only 3 | . 3 . Max Kills in Single Turn 1 | 1 1 . Gunslinging . | . . . Exploded . | . . . Melee . | . . . Uniques/NPCs Destroyed . | . . . Combat | -11 -10 -9 -------- Run | Scr Mat Mat Damage Taken 347 | . 204 143 Core 109 | . 69 40 Absorbed by Shields . | . . . Core Remaining (%) 86 | 100 72 . Volleys Fired 22 | 4 18 . Largest 2 | 2 2 . Hottest 90 | 90 90 . Shots Fired 42 | 8 34 . Gun 42 | 8 34 . Cannon . | . . . Launcher . | . . . Special . | . . . Kinetic . | . . . Thermal 42 | 8 34 . Explosive . | . . . Electromagnetic . | . . . Robot Hit Streak 7 | 5 7 . Robot Miss Streak 3 | 1 3 . Penetration Max . | . . . Secondary Targets 2 | . 2 . Max Gunslinging Chain 1 | . 1 . Shots Hit Robots 27 | 6 21 . Core Hits 7 | 2 5 . Critical Hits . | . . . Critical Kills . | . . . Critical Parts Destroyed . | . . . Melee Attacks . | . . . Impact . | . . . Slashing . | . . . Piercing . | . . . Sneak Attacks . | . . . Combat Hostiles . | . . . Follow-up Attacks . | . . . Damage Inflicted 309 | 74 235 . Guns 301 | 74 227 . Cannons . | . . . Explosions . | . . . Melee . | . . . Ramming 8 | . 8 . Kinetic . | . . . Thermal 301 | 74 227 . Explosive . | . . . Electromagnetic . | . . . Impact . | . . . Slashing . | . . . Piercing . | . . . Highest Corruption . | . . . Average Corruption . | . . . Corruption Purged . | . . . Overload Shots . | . . . Overflow Damage . | . . . Projectiles . | . . . Explosions . | . . . Melee . | . . . Knockbacks . | . . . Impact . | . . . Kinetic . | . . . Secondary . | . . . Self-Inflicted Damage 3 | . 3 . Shots . | . . . Rammed 2 | . 2 . Targets Rammed 2 | . 2 . Kicked . | . . . Crushed . | . . . Highest Temperature 230 | 120 230 . Average Temperature 104 | 63 113 . Received Heat Transfer 42 | . . 42 Siege Activations . | . . . Robots Corrupted . | . . . Combat Hostiles . | . . . Parts Fried . | . . . Impact Corruptions . | . . . Robots Melted . | . . . Combat Hostiles . | . . . Parts Melted 2 | . 2 . Heat Transferred 817 | 198 619 . Parts Sabotaged . | . . . Parts Stolen . | . . . Parts Stripped . | . . . Power Chain Reactions . | . . . Missiles Intercepted . | . . . Alert | -11 -10 -9 ------- Run | Scr Mat Mat Peak Influence 205 | 5 205 168 Average Influence 80 | 1 73 114 Maximum Alert Level 1 | . 1 . Low Security (%) 94 | 100 87 100 Level 1 5 | . 12 . Level 2 . | . . . Level 3 . | . . . Level 4 . | . . . Level 5 . | . . . High Security . | . . . Max Security . | . . . Squads Dispatched 2 | . . 2 Investigation . | . . . Extermination . | . . . Reinforcement 2 | . . 2 Assault . | . . . Garrison . | . . . Intercept . | . . . Construction Impeded . | . . . Haulers Reinforced . | . . . Stealth | -11 -10 -9 --------- Run | Scr Mat Mat Distress Signals 1 | . . 1 Communications Jammed . | . . . Distress Signals . | . . . Times Spotted 24 | . 8 16 Peak Tracking Total 12 | . 4 12 Tactical Retreats 2 | . . 2 Traps | -11 -10 -9 ------- Run | Scr Mat Mat Traps Triggered . | . . . Indirectly . | . . . Trap Hack Attempts . | . . . Triggered . | . . . Disarmed . | . . . Reprogrammed . | . . . Reused . | . . . Traps Extracted . | . . . Installed . | . . . Triggered . | . . . Machines | -11 -10 -9 ---------- Run | Scr Mat Mat Machines Disabled . | . . . Max in Single Turn . | . . . Machines Sabotaged . | . . . Garrisons Compromised . | . . . Overloaded Fab Kills . | . . . Fab Network Shutdowns . | . . . Hacking | -11 -10 -9 --------- Run | Scr Mat Mat Machines Accessed 9 | . 6 3 Terminals 9 | . 6 3 Fabricators . | . . . Repair Stations . | . . . Recycling Units . | . . . Scanalyzers . | . . . Garrison Access . | . . . Total Hacks 26 | . 20 6 Successful 16 | . 13 3 Failed 10 | . 7 3 Catastrophic 1 | . . 1 Database Lockouts . | . . . Manual 25 | . 19 6 Terminals 26 | . 20 6 Fabricators . | . . . Repair Stations . | . . . Recycling Units . | . . . Scanalyzers . | . . . Garrison Access . | . . . Terminal Hacks 5 | . 4 1 Part Schematic 1 | . 1 . Prototype ID Bank 1 | . 1 . Level Access Points 1 | . 1 . Terminal Index 2 | . 1 1 Fabricator Hacks . | . . . Repair Station Hacks . | . . . Recycling Unit Hacks . | . . . Scanalyzer . | . . . Garrison Access Hacks . | . . . Unauthorized Hacks 27 | . 22 5 Terminals 11 | . 9 2 Track 4 | . 4 . Assimilate 1 | . 1 . Botnet 5 | . 3 2 Operators 1 | . 1 . Fabricators . | . . . Repair Stations . | . . . Recycling Units . | . . . Scanalyzers . | . . . Garrison Access . | . . . Data Cores Recovered . | . . . Used . | . . . Hacking Detections 8 | . 5 3 Full Trace Events . | . . . Feedback Events . | . . . Feedback Blocked . | . . . Robot Schematics Acquired . | . . . Robots Built . | . . . Matter . | . . . Time . | . . . Total Robot Build Rating . | . . . Part Schematics Acquired 1 | . 1 . Parts Built . | . . . Matter . | . . . Time . | . . . Total Part Build Rating . | . . . Parts Repaired . | . . . Time . | . . . Parts Recycled . | . . . Recycled Matter . | . . . Retrieved Matter . | . . . Retrieved Components . | . . . Parts Scanalyzed . | . . . Part Schematics Acquired . | . . . Parts Damaged . | . . . Bothacking | -11 -10 -9 ------------ Run | Scr Mat Mat Used RIF Installer . | . . . Robots Hacked . | . . . Non-combat . | . . . Combat . | . . . Robot Hacks Applied . | . . . Relay Couplers Released . | . . . Robots Rewired . | . . . Allies Hacked . | . . . Hacks Repelled . | . . . Allies | -11 -10 -9 -------- Run | Scr Mat Mat Total Allies 1 | . 1 . Largest Group 1 | . 1 1 Highest-Rated Group 10 | . 10 10 Highest-Rated Ally 10 | . 10 10 Total Orders . | . . . Ally Attacks . | . . . Total Damage . | . . . Kills . | . . . Allies Corrupted . | . . . Allies Melted . | . . . Intel | -11 -10 -9 ------- Run | Scr Mat Mat Robot Analysis Total . | . . . Derelict Logs Recovered . | . . . Drone Launches . | . . . Drone Recoveries . | . . . Exploration | -11 -10 -9 ------------- Run | Scr Mat Mat Turns Passed 482 | 67 219 196 Spaces Moved 606 | 51 255 300 Core 19 | 18 1 . Treads . | . . . Legs . | . . . Wheels 151 | 33 118 . Hover . | . . . Flight 436 | . 136 300 Fastest Speed 34 | 50 37 34 Average Speed 48 | 80 58 34 Slowest Speed 200 | 100 200 34 Overloaded Moves . | . . . Propulsion Burnouts . | . . . Robots Hopped 5 | . 1 4 Cave-ins Triggered . | . . . Exploration Rate (%) 31 | 5 50 40 Regions Visited 2 Branch Regions . Pre-discovered Areas . | . . . Known Exits Taken 1 | . 1 . Unknown Exits Taken 1 | 1 . . Scrap Searched . | . . . Spaces Dug . | . . . Terrain Destroyed . | . . . Melee . | . . . Projectile . | . . . AOE . | . . . Actions | -11 -10 -9 --------- Run | Scr Mat Mat Total 748 | 68 290 390 Wait 93 | . 5 88 Move 596 | 50 252 294 Hop 3 | . 1 2 Pick Up 17 | 8 5 4 Fast Attach . | . . . Attach 9 | 6 2 1 Detach . | . . . Swap . | . . . Drop 6 | . 5 1 Fire 22 | 4 18 . Melee . | . . . Ram 2 | . 2 . Kick . | . . . Crush . | . . . Escape Stasis . | . . . Rewire . | . . . Trap . | . . . Miscellaneous . | . . . Route ------- -11/Scrapyard -10/Materials (discovered 5 exits: *Mat x3 / [*Min x2]) -9/Materials (discovered 1 exit: [*Min]) History --------- Turn | Location | Event 21 | -11/Scrapyard | Discovered new exit (range 15) 68 | -11/Scrapyard | Entered Materials 95 | -10/Materials | Discovered new exit (range 13) 246 | -10/Materials | Identified exit to Materials 256 | -10/Materials | Discovered new exit (range 14) 287 | -10/Materials | Entered another Materials area 287 | -9/Materials | Accompanied by 1 ally 287 | -9/Materials | Evolved 2 slots: Propulsion x1, Utility x1 308 | -9/Materials | Build established: Mutant 451 | -9/Materials | Discovered new exit (range 8) 483 | -9/Materials | Self-destructed Last Messages --------------- 00441_ Connecting with Terminal... >>Index(Terminals) Found 12 terminals. Downloaded coordinate data. 00451_ EXIT=FOUND 00453_ T-07 Excavator is excavating. 00457_ K-01 Serf collects debris. 00462_ W-16 Scout sends out distress signal. 00464_ Connecting with Terminal... >>Trojan(Botnet) Trojan loaded successfully. Testing... Terminal linked with 1 system. Awaiting botnet instructions. 00465_ O-16 Technician: "IFF HANDSHAKE FAILED. SECURING TERMINAL." 00472_ ALERT: Hostiles spotted, dispatching reinforcements to Terminal M001. 00474_ Acquired 5 matter. 00479_ Lgt. Ion Engine destroyed. 00483_ Flight Unit destroyed. Map ----- +----------------------------------------------------+ | ??????######?# #?#######??????# ## """ ! + + | | ?????????????#### #??????????????# ## """ ### | | ##########??????# #??????????????# ## #?# | | #??????# #?#####????????# ###########?#! | | #??????# # #???###### #???????????# | | ######## # #??##!! #???????????# | | + / ! #??#! #???????????# | | # # #??#! #???????????# | | # # """ #??#! ############### | | + #?""" #??#! | | ?? ??##### ####??"" #??##!! | | ?###+###???### ################# | | ## ]##### ## #######/######+#### | | T" ## #???# # | | " ## #???# # | | ## #???# + | | ## ##### ## #???# # | | ?############ ####+####+########## # = | | ?????# # #??# ### / # [= | | ?????# + #??# ################ == | | ?????# "" # #??# #??????????????#"" | | ?????# S"" # #??# g #??????????????#"T | | ###??# "" ?# #?## #??????????????#"" | | #??######?# #?# #??????????????# | | #?????????# #?# #??????????????######## | | #?????????# #?#"" g @ #?????????????????????? | | #????????## ###"Y ##?????????????????????? | | #????????# ##"" #??????????????????????? | | #????????# w #??????????????????????? | | +????????# sss #??????????????????????? | | #????????# s ### #??????????????????????? | | #????????# s##+###?# #??????????????????????? | | #????????###t### ??# #??????????????????????? | | #??????????# #?# #?#t#??????????????????????? | | #??????????# #?# #?#t#??????????????????????? | | #+######?????# #?# #? ??????????????????????? | | ! ####### #?# #? ??????????????????????? | | / /% #?# #? g ??????????????????????? | | #### ####?# #? a ??????????????????????? | | ! #??# #????# #? ??????????????????????? | | ######+#??# #????# ##? ??????????????????????? | | ?????? #??# #????#####?? ??????????????????????? | | ?????? ####+###????????? ??????????????????????? | | ?????? # #????????? ??????????????????????? | | ?????? # #?????????###??????????????????????? | | ?????# # #??????????????????????????????????? | | ?????# # " #??????????????????????????????????? | | ###### # """ #??????????????????????????????????? | | # """ #??????????????????????????????????? | | / """ #??????????????????????????????????? | +----------------------------------------------------+ Best States ------------- Heat Dissipation 28 Energy Generation 10 Energy Capacity 125 Matter Stores 300 Matter Capacity 300 Sight Range 16 Terrain Scan Density 10 Evasion (%) 63 Item Schematics ----------------- Lrg. Storage Unit | -10/Materials | Hacked Robot Schematics ------------------ None Fabricated ------------ Nothing Alien Tech Used ----------------- None Achievements -------------- None Challenges ------------ None Game ------ Seed AlertBackupWeb Manual? 0 Play Time 00:10:30 Cumulative 210.7 hours Start 2019.12.04 @ 20:41:51 End 2019.12.04 @ 21:03:20 Sessions 1 Manual Loads 0 Difficulty Rogue Special Mode None Game No. 284 Rogue 284 Adventurer 0 Explorer 0 Win Type - Total 2 Types 1/0/0/1/0/0/0 Lore% 53 Gallery% 75 Achievement% 52 Wizard Run 0 Options --------- ASCII 0 Keyboard 0 Movement Numpad Keybinds 0 Fullscreen 1 Font 16/Terminus Map View 75x55 Tactical HUD 1 Map Filters NONE Filters NONE Steam 1 RUN: 0aa9d890-4a3d-4290-942a-82b8732978ec